Cogmind - Beta 11 @@@ ROGUE MODE // 2022.03.27 @ 05:29:03 Player: Wyvric Result: Destroyed by D-53 Grenadier with Mini Grenade Launcher Performance ------------- Evolutions (0) 0 Regions Visited (2) 400 Robots Destroyed (7) 35 Value Destroyed (159) 159 Prototype IDs (0) 0 Alien Tech Used (0) 0 Bonus (0) 0 TOTAL SCORE: 594 Bonus ------- None Cogmind --------- Core Integrity 0/250 Matter 273/300 Energy 100/125 System Corruption 0% Temperature Cool (0) Movement Rolling (110) Ox2 Location -10/Mines Parts ------- > --- POWER (1) -------- Light Ion Engine > --- PROPULSION (2) --- Wheel > --- UTILITY (2) ------ Improved Heat Sink Large Storage Unit > --- WEAPON (2) ------- Light Assault Rifle > --- INVENTORY (15) --- Light Treads Aluminum Leg Aluminum Leg Aluminum Leg Aluminum Leg Aluminum Leg Aluminum Leg Compact Wheel High-capacity Storage Unit High-capacity Storage Unit Signal Interpreter Small Laser Mining Laser Peak State ------------ > --- POWER ------------ Light Ion Engine > --- PROPULSION ------- Aluminum Leg Aluminum Leg > --- UTILITY ---------- Improved Heat Sink Large Storage Unit > --- WEAPON ----------- Assault Rifle Light Assault Rifle > --- INVENTORY -------- Light Treads Aluminum Leg Aluminum Leg Wheel Wheel Compact Wheel High-capacity Storage Unit High-capacity Storage Unit Signal Interpreter Small Laser Mining Laser [Rating: 10] Favorites ----------- Power Light Ion Engine Engine Light Ion Engine Propulsion Aluminum Leg Treads Light Treads Leg Aluminum Leg Wheel Wheel Utility Large Storage Unit Device Heat Sink Storage Large Storage Unit Weapon Light Assault Rifle Energy Gun Medium Laser Ballistic Gun Light Assault Rifle Special Weapon Mining Laser Build | -11 -10 -10 ------- Run | Scr Mat Min Slots Evolved . | . . . Power . | . . . Propulsion . | . . . Utility . | . . . Weapon . | . . . Parts Attached 22 | 4 5 13 Power 2 | 1 . 1 Engine 2 | 1 . 1 Core . | . . . Reactor . | . . . Propulsion 8 | 2 . 6 Treads 2 | . . 2 Leg 4 | 2 . 2 Wheel 2 | . . 2 Hover . | . . . Flight . | . . . Utility 6 | 1 3 2 Device 2 | . . 2 Storage 4 | 1 3 . Processor . | . . . Hackware . | . . . Protection . | . . . Artifact . | . . . Weapon 6 | . 2 4 Energy Gun 2 | . . 2 Energy Cannon . | . . . Ballistic Gun 2 | . . 2 Ballistic Cannon . | . . . Launcher . | . . . Special Weapon 2 | . 2 . Impact Weapon . | . . . Slashing Weapon . | . . . Piercing Weapon . | . . . Special Melee Weapon . | . . . Unidentified Prototypes . | . . . Parts Lost 8 | . . 8 Power 1 | . . 1 Propulsion 2 | . . 2 Utility 1 | . . 1 Weapon 4 | . . 4 Highest Loss Streak 3 | . . 3 To Critical Strikes . | . . . Average Slot Usage (%) 84 | . 58 94 Engine 12 | . 14 12 Treads 2 | . . 3 Leg 24 | . 28 23 Device 8 | . . 11 Storage 14 | . 14 14 Energy Gun 5 | . . 8 Ballistic Gun 12 | . . 18 Special Weapon 1 | . 1 1 Naked Turns . | . . . Heaviest Build 45 | 8 45 27 Greatest Support 40 | 20 20 40 Greatest Overweight (x) 2 | . 2 2 Average Overweight (x) . | . . . Largest Inventory Capacity 20 | 8 20 15 Average Capacity 14 | 7 15 15 Most Carried 13 | 8 11 13 Average Carried 9 | 5 9 10 Final Capacity 15 | 8 15 15 Final Carried 13 | 8 11 13 Class Distribution -------------------- 100% | Mutant Dominant Class ---------------- Mutant | -10/Materials Mutant | -10/Mines Resources | -11 -10 -10 ----------- Run | Scr Mat Min Matter Collected 419 | 174 . 245 Remotely . | . . . Salvage Created 175 | . . 175 Parts 9 | . . 9 Haulers Intercepted . | . . . Recyclers Shooed . | . . . Parts Field Recycled . | . . . Retrieved Matter . | . . . Parts Self-Destructed . | . . . Prevented . | . . . Kills | -11 -10 -10 ------- Run | Scr Mat Min Combat Hostiles Destroyed 6 | . . 6 Guns 5 | . . 5 Cannons 1 | . . 1 Classes Destroyed 3 | . . 3 Worker 1 | . . 1 Swarmer 3 | . . 3 Grunt 3 | . . 3 Best Kill Streak 1 | . . 1 Combat Bots Only 1 | . . 1 Max Kills in Single Turn 1 | . . 1 Gunslinging . | . . . Exploded . | . . . Melee . | . . . Uniques/NPCs Destroyed . | . . . Combat | -11 -10 -10 -------- Run | Scr Mat Min Damage Taken 1057 | . . 1057 Core 259 | . . 259 Absorbed by Shields . | . . . Core Remaining (%) 100 | 100 . . Volleys Fired 43 | . . 43 Largest 2 | . . 2 Hottest 200 | . . 200 Shots Fired 73 | . . 73 Gun 67 | . . 67 Cannon . | . . . Launcher . | . . . Special 6 | . . 6 Kinetic 44 | . . 44 Thermal 29 | . . 29 Explosive . | . . . Electromagnetic . | . . . Robot Hit Streak 11 | . . 11 Robot Miss Streak 8 | . . 8 Penetration Max . | . . . Secondary Targets 2 | . . 2 Max Gunslinging Chain 1 | . . 1 Shots Hit Robots 40 | . . 40 Core Hits 12 | . . 12 Critical Kills . | . . . Critical Parts Destroyed . | . . . Critical Strikes . | . . . Melee Attacks . | . . . Impact . | . . . Slashing . | . . . Piercing . | . . . Sneak Attacks . | . . . Combat Hostiles . | . . . Follow-up Attacks . | . . . Damage Inflicted 432 | . . 432 Guns 384 | . . 384 Cannons . | . . . Explosions . | . . . Melee . | . . . Ramming . | . . . Kinetic 287 | . . 287 Thermal 145 | . . 145 Explosive . | . . . Electromagnetic . | . . . Impact . | . . . Slashing . | . . . Piercing . | . . . Highest Corruption . | . . . Average Corruption . | . . . Corruption Purged . | . . . Corruption Blocked . | . . . Overload Shots . | . . . Overflow Damage . | . . . Projectiles . | . . . Explosions . | . . . Melee . | . . . Knockbacks . | . . . Impact . | . . . Kinetic . | . . . Secondary . | . . . Self-Inflicted Damage . | . . . Shots . | . . . Rammed . | . . . Targets Rammed . | . . . Kicked . | . . . Crushed . | . . . Highest Temperature 283 | . . 283 Average Temperature 124 | . . 124 Received Heat Transfer 303 | . . 303 Siege Activations . | . . . Robots Corrupted . | . . . Combat Hostiles . | . . . Parts Fried . | . . . Impact Corruptions . | . . . Robots Melted . | . . . Combat Hostiles . | . . . Parts Melted 1 | . . 1 Heat Transferred 372 | . . 372 Parts Sabotaged . | . . . Parts Stolen . | . . . Parts Stripped . | . . . Power Chain Reactions . | . . . Missiles Intercepted . | . . . Alert | -11 -10 -10 ------- Run | Scr Mat Min Peak Influence 108 | . . 108 Initial . | . . . Average 33 | . . 49 Maximum Alert Level . | . . . Low Security (%) 100 | 100 100 100 Level 1 . | . . . Level 2 . | . . . Level 3 . | . . . Level 4 . | . . . Level 5 . | . . . High Security . | . . . Max Security . | . . . Squads Dispatched . | . . . Investigation . | . . . Extermination . | . . . Reinforcement . | . . . Assault . | . . . Garrison . | . . . Intercept . | . . . Searches Triggered . | . . . Construction Impeded . | . . . Haulers Reinforced . | . . . Active Scanning Responses . | . . . Cargo Convoy Interrupts . | . . . Stealth | -11 -10 -10 --------- Run | Scr Mat Min Distress Signals . | . . . Communications Jammed . | . . . Distress Signals . | . . . Times Spotted 10 | . 1 9 Peak Tracking Total 4 | . 1 4 Tactical Retreats . | . . . Traps | -11 -10 -10 ------- Run | Scr Mat Min Traps Triggered . | . . . Indirectly . | . . . Trap Hack Attempts . | . . . Triggered . | . . . Disarmed . | . . . Reprogrammed . | . . . Reused . | . . . Traps Extracted . | . . . Installed . | . . . Triggered . | . . . Machines | -11 -10 -10 ---------- Run | Scr Mat Min Machines Disabled . | . . . Max in Single Turn . | . . . Machines Sabotaged . | . . . Garrisons Compromised . | . . . Overloaded Fab Kills . | . . . Hacking | -11 -10 -10 --------- Run | Scr Mat Min Machines Accessed . | . . . Terminals . | . . . Fabricators . | . . . Repair Stations . | . . . Recycling Units . | . . . Scanalyzers . | . . . Garrison Access . | . . . Total Hacks . | . . . Successful . | . . . Failed . | . . . Catastrophic . | . . . Database Lockouts . | . . . Manual . | . . . Terminals . | . . . Fabricators . | . . . Repair Stations . | . . . Recycling Units . | . . . Scanalyzers . | . . . Garrison Access . | . . . Terminal Hacks . | . . . Fabricator Hacks . | . . . Repair Station Hacks . | . . . Recycling Unit Hacks . | . . . Scanalyzer . | . . . Garrison Access Hacks . | . . . Unauthorized Hacks . | . . . Terminals . | . . . Fabricators . | . . . Repair Stations . | . . . Recycling Units . | . . . Scanalyzers . | . . . Garrison Access . | . . . Data Cores Recovered . | . . . Used . | . . . Hacking Detections . | . . . Full Trace Events . | . . . Feedback Events . | . . . Feedback Blocked . | . . . Robot Schematics Acquired . | . . . Robots Built . | . . . Authchips . | . . . Time . | . . . Total Robot Build Rating . | . . . Part Schematics Acquired . | . . . Parts Built . | . . . Authchips . | . . . Time . | . . . Total Part Build Rating . | . . . Parts Repaired . | . . . Time . | . . . Parts Recycled . | . . . Recycled Matter . | . . . Retrieved Matter . | . . . Retrieved Components . | . . . Parts Scanalyzed . | . . . Part Schematics Acquired . | . . . Parts Damaged . | . . . Bothacking | -11 -10 -10 ------------ Run | Scr Mat Min Used RIF Installer . | . . . Robots Hacked . | . . . Non-combat . | . . . Combat . | . . . Robot Hacks Applied . | . . . Relay Couplers Released . | . . . Fabnet Peak Effective % . | . . . Robots Rewired . | . . . Allies Hacked . | . . . Hacks Repelled . | . . . Allies | -11 -10 -10 -------- Run | Scr Mat Min Total Allies . | . . . Largest Group . | . . . Highest-Rated Group . | . . . Highest-Rated Ally . | . . . Total Orders . | . . . Ally Attacks . | . . . Total Damage . | . . . Kills . | . . . Allies Corrupted . | . . . Allies Melted . | . . . Intel | -11 -10 -10 ------- Run | Scr Mat Min Robot Analysis Total . | . . . Derelict Logs Recovered 1 | . . 1 Drone Launches . | . . . Drone Recoveries . | . . . Exploration | -11 -10 -10 ------------- Run | Scr Mat Min Turns Passed 882 | 68 225 589 Spaces Moved 395 | 47 115 233 Core 2 | 2 . . Treads 2 | . . 2 Legs 390 | 45 115 230 Wheels 1 | . . 1 Hover . | . . . Flight . | . . . Fastest Speed 50 | 50 120 110 Average Speed 179 | 117 184 189 Slowest Speed 260 | 120 260 190 Overloaded Moves . | . . . Propulsion Burnouts . | . . . Robots Hopped . | . . . Cave-ins Triggered . | . . . Exploration Rate (%) 22 | 5 26 35 Regions Visited 2 Branch Regions 1 Pre-discovered Areas . | . . . Known Exits Taken . | . . . Unknown Exits Taken 2 | 1 1 . Scrap Searched 1 | . . 1 Spaces Dug . | . . . Terrain Destroyed 2 | . . 2 Melee . | . . . Projectile 2 | . . 2 AOE . | . . . Terrain Rammed . | . . . Walls Destroyed . | . . . Machines Disabled . | . . . Actions | -11 -10 -10 --------- Run | Scr Mat Min Total 488 | 58 129 301 Wait 2 | . . 2 Move 393 | 46 114 233 Hop . | . . . Pick Up 21 | 8 6 7 Fast Attach 8 | 4 2 2 Attach 10 | . 2 8 Detach 4 | . 1 3 Swap 4 | . 1 3 Drop 3 | . 3 . Fire 43 | . . 43 Melee . | . . . Ram . | . . . Kick . | . . . Crush . | . . . Escape Stasis . | . . . Rewire . | . . . Trap . | . . . Miscellaneous . | . . . Route ------- -11/Scrapyard -10/Materials -10/Mines (discovered 1 exit: [*Mat]) History --------- Turn | Location | Event 23 | -11/Scrapyard | Discovered new exit (range 16) 69 | -11/Scrapyard | Entered Materials 221 | -10/Materials | Discovered new exit (range 16) 294 | -10/Materials | Entered Mines 318 | -10/Mines | Build established: Mutant 350 | -10/Mines | Core integrity fell below 50% 359 | -10/Mines | Lost 3 parts (1p2w) 633 | -10/Mines | Discovered new exit (range 6) 810 | -10/Mines | Assembled infested the area 880 | -10/Mines | Core integrity fell below 20% 883 | -10/Mines | Destroyed by D-53 Grenadier with Mini Grenade Launcher Last Messages --------------- 00651_ Med. Laser destroyed. 00673_ Heat Sink destroyed. 00673_ G-47 Trooper destroyed. 00680_ Acquired Aluminum Leg. 00681_ Acquired 44 matter. 00685_ Acquired Imp. Heat Sink. 00690_ Acquired Aluminum Leg. 00694_ Acquired 34 matter. 00730_ K-01 Serf destroyed. 00744_ R-06 Scavenger collects Sml. Matter Pod. 00746_ Acquired 21 matter. 00748_ R-06 Scavenger collects Wheel. 00810_ ALERT: Infestation in the mines, dispatching Demolisher response squad. 00812_ T-07 Excavator destroyed. 00879_ C-30 ARC bursts open, deploying its payload. 00879_ D-53 Grenadier unfolds itself. 00879_ Plasma Injector explodes. 00879_ Assault Rifle destroyed. 00882_ Wheel destroyed. Map ----- +----------------------------------------------------+ | ??????? ??????????# #???????? | | ???????? ??????# #### ######???????? | | ??????# #### #??# #????????????? | | ??????# #??# #????????????? | | ??????# ##### #??# #????????????? | | ?????# ##### ##?# #????????????? | | ??????????# ### #????????????? | | ??????????# #### ## #????????????? | | ??????????????????## ## #????????????? | | ??????????????????# ## #????????????? | | ??????????????????# ### #????????????? | | ???????????????# % ### #????????????? | | ???????????????# ### ## # #????????????? | | ???????????????#???####### #????????????? | | ??????????????????????# #????????????? | | ??????????????????????# ####????????????? | | ??????????????????????# #???????????????? | | ??????????????????????# #####???????????? | | ???????????????????#### ## ##??????????? | | ??????????????????## #??????????? | | ????????????????###d ##?????????? | | ???????????? d ###???????? | | ???????????# ###### ##??????? | | ???????????????????# ##?????? | | ???????????????????# ###???? | | ???????????????????## @ ##??? | | ????????????????????# #??? | | ????????????????????# ## #??? | | ????????????????????## ### ##??? | | ?????????????????????##### #?## #???? | | ?????????????????????????# #??# ##???? | | ?????????????????????????# #??# ###????? | | ?????????????????????????# #??# #??????? | | ???????????????????????###a #??# #??????? | | ???????????????????????# #??# #??????? | | ???????????????????????# ####??# #??????? | | ???????????????????????# #?????# #??????? | | ???????????????????????# #?????# #??????? | | ?????????????########### #?????# #??????? | | ?????????????# #?????# #??????? | | ?????????????# ##########?????# #??????? | | ?????????????# #??????????????# #??????? | | ?????????????# #??????????????# #??????? | | ?????????????# #???##########?# #??????? | | ?????????????# #???# #?# #??????? | | ???????????### #???# """ < ### #??????? | | ???????????# #???# """ #??????? | | ???? !%= #???# """ #####??????? | | ## ???# #??????????? | | ?????## ???# """ #??????????? | +----------------------------------------------------+ Best States ------------- Heat Dissipation 39 Energy Generation 10 Energy Capacity 125 Matter Stores 283 Matter Capacity 300 Sight Range 16 Terrain Scan Density 10 Evasion (%) 55 Recoil Reduction 2 Item Schematics ----------------- None Robot Schematics ------------------ None Fabricated ------------ Nothing Alien Tech Used ----------------- None Achievements -------------- None Challenges ------------ None Game ------ Seed StealthCloakBroadsword Manual? 0 Play Time 00:05:12 Cumulative 165.4 hours Start 2022.03.27 @ 05:22:54 End 2022.03.27 @ 05:29:03 Sessions 1 Manual Loads 0 Difficulty Rogue Special Mode None Game No. 45 Rogue 45 Adventurer 0 Explorer 0 Win Type - Total 13 Types 7/2/2/1/1/0/0/0/0 Lore% 47 Gallery% 72 Achievement% 62 Wizard Run 0 Options --------- ASCII 0 Keyboard 0 Movement Numpad Keybinds 0 Fullscreen 1 Font 18/TerminusBold Map View 76x50 Tactical HUD 1 Map Filters NONE Filters NONE Steam 1 RUN: e175e843-aeb1-47f0-8b6f-8a1d19566faa